[Event "Estonian-ch Open 2020"]
[Site "Paul Kerese Malemaja"]
[Date "2020.08.12"]
[Round "5.3"]
[White "Sepp, Olav"]
[Black "Haitin, Ilja"]
[Result "0-1"]
[ECO "A00"]
[WhiteElo "2410"]
[BlackElo "2357"]
[Annotator "ChessBase"]
[PlyCount "112"]
[EventDate "2020.08.09"]
[EventCountry "EST"]
[SourceTitle "playchess.com"]
[Source "ChessBase"]
[SourceQuality "1"]
[TimeControl "40/5400+30:900+30"]

1. g3 {[%emt 0:00:00]} Nf6 {[%emt 0:00:00]} 2. Bg2 {[%emt 0:00:06]} g6 {[%emt 0:00:00]} 3. d4 {[%emt 0:02:49]} Bg7 {[%emt 0:00:00]} 4. Nf3 {[%emt 0:08:52]} O-O {[%emt 0:00:00]} 5. O-O {[%emt 0:00:06]} d6 {[%emt 0:00:00]} 6. a4 {[%emt 0:05:03]} c6 {[%emt 0:00:13]} 7. a5 {[%emt 0:01:02]} Nbd7 {[%emt 0:00:07]} 8. Nbd2 {[%emt 0:02:02]} Qc7 {[%emt 0:00:19]} 9. e4 {[%emt 0:06:51]} e5 {[%emt 0:00:50]} 10. Re1 {[%emt 0:02:32]} exd4 {[%emt 0:12:41]} 11. Nxd4 {[%emt 0:00:11]} Re8 {[%emt 0:00:52]} 12. N2b3 {[%emt 0:30:54]} Ne5 {[%emt 0:12:00]} 13. h3 {[%emt 0:06:03]} a6 {[%emt 0:20:50]} 14. f4 {[%emt 0:01:09]} Nc4 {[%emt 0:04:00]} 15. Qd3 {[%emt 0:16:59]} d5 {[%emt 0:06:48]} 16. e5 {[%emt 0:00:23]} Nd7 {[%emt 0:09:39]} 17. Nd2 {[%emt 0:08:56]} Nc5 {[%emt 0:18:28]} 18. Qf1 {[%emt 0:00:15]} Nxd2 19. Bxd2 {[%emt 0:00:01]} Ne4 {[%emt 0:06:48]} 20. Bxe4 {[%emt 0:00:09]} dxe4 {[%emt 0:00:01]} 21. Rxe4 {[%emt 0:00:52]} c5 {[%emt 0:00:08]} 22. Nb3 {[%emt 0:01:25]} Bf5 {[%emt 0:01:50]} 23. Rc4 {[%emt 0:00:11]} Be6 {[%emt 0:02:43]} 24. Rc3 {[%emt 0:01:59]} c4 {[%emt 0:01:11]} 25. Be3 {[%emt 0:00:32]} Bf8 {[%emt 0:00:42]} 26. Bb6 {[%emt 0:01:01]} Qc8 {[%emt 0:00:29]} 27. Nd4 {[%emt 0:00:26]} Bxh3 {[%emt 0:00:57]} 28. Qxc4 {[%emt 0:00:23]} Qd7 {[%emt 0:00:35]} 29. Qd3 {[%emt 0:02:21]} Rac8 {[%emt 0:00:46]} 30. Kh2 {[%emt 0:00:47]} Rxc3 {[%emt 0:00:24]} 31. bxc3 {[%emt 0:00:05]} Bg4 {[%emt 0:00:40]} 32. Re1 {[%emt 0:00:33]} Rc8 {[%emt 0:00:52]} 33. Re3 {[%emt 0:00:25]} Qd5 {[%emt 0:00:32]} 34. Nb3 {[%emt 0:00:54]} Qxd3 {[%emt 0:00:57]} 35. Rxd3 {[%emt 0:00:06]} Bf5 {[%emt 0:00:09]} 36. Re3 {[%emt 0:00:38]} Bxc2 {[%emt 0:00:13]} 37. Nd4 {[%emt 0:00:02]} Ba4 {[%emt 0:00:30]} 38. e6 {[%emt 0:00:51]} fxe6 {[%emt 0:00:25]} 39. Nxe6 {[%emt 0:00:01]} Re8 {[%emt 0:01:04]} 40. g4 {[%emt 0:00:00]} Bd6 {[%emt 0:00:00]} 41. Kg3 {[%emt 0:14:07]} h6 {[%emt 0:09:41]} 42. Kf2 {[%emt 0:01:03]} Bd1 {[%emt 0:05:15]} 43. g5 {[%emt 0:01:36]} h5 {[%emt 0:01:06]} 44. c4 {[%emt 0:01:46]} Kf7 {[%emt 0:01:42]} 45. Nd8+ {[%emt 0:00:11]} Rxd8 {[%emt 0:00:16]} 46. Bxd8 {[%emt 0:00:06]} Bc5 {[%emt 0:00:05]} 47. Bb6 {[%emt 0:00:46]} Bxe3+ {[%emt 0:00:33]} 48. Bxe3 {[%emt 0:00:08]} Ke6 {[%emt 0:00:36]} 49. Kg3 {[%emt 0:00:11]} Bb3 {[%emt 0:00:46]} 50. c5 {[%emt 0:01:09]} Kd5 {[%emt 0:00:27]} 51. f5 {[%emt 0:00:59]} gxf5 {[%emt 0:00:30]} 52. g6 {[%emt 0:00:05]} Ke4 {[%emt 0:00:31]} 53. Bc1 {[%emt 0:00:56]} Be6 {[%emt 0:00:45]} 54. Bd2 {[%emt 0:00:30]} f4+ {[%emt 0:00:27]} 55. Kh4 {[%emt 0:00:20]} f3 {[%emt 0:00:20]} 56. Kg3 {[%emt 0:00:32]} Kd3 {[%emt 0:00:19]} 0-1

[Event "Estonian-ch Open 2020"]
[Site "Paul Kerese Malemaja"]
[Date "2020.08.12"]
[Round "5.4"]
[White "Kiik, Kalle"]
[Black "Vorobjov, Pavel"]
[Result "1-0"]
[ECO "A30"]
[WhiteElo "2386"]
[BlackElo "2269"]
[Annotator "ChessBase"]
[PlyCount "63"]
[EventDate "2020.08.09"]
[EventCountry "EST"]
[SourceTitle "playchess.com"]
[Source "ChessBase"]
[SourceQuality "1"]
[TimeControl "40/5400+30:900+30"]

1. c4 {[%emt 0:00:00]} c5 {[%emt 0:00:30]} 2. Nf3 {[%emt 0:00:56]} Nc6 {[%emt 0:00:35]} 3. b3 {[%emt 0:02:43]} Nf6 {[%emt 0:02:04]} 4. Bb2 {[%emt 0:00:10]} e6 {[%emt 0:02:00]} 5. e3 {[%emt 0:02:07]} Be7 {[%emt 0:00:59]} 6. d4 {[%emt 0:01:53]} cxd4 {[%emt 0:00:17]} 7. exd4 {[%emt 0:04:01]} d5 {[%emt 0:00:23]} 8. Nbd2 {[%emt 0:00:51]} O-O {[%emt 0:03:16]} 9. Rc1 {[%emt 0:03:33]} dxc4 {[%emt 0:04:36]} 10. bxc4 {[%emt 0:00:33]} b6 {[%emt 0:00:51]} 11. Bd3 {[%emt 0:00:23]} Bb7 {[%emt 0:05:18]} 12. O-O {[%emt 0:00:15]} Qd6 {[%emt 0:03:00]} 13. Re1 {[%emt 0:06:38]} Rfd8 {[%emt 0:02:24]} 14. Bb1 {[%emt 0:04:31]} Qf4 {[%emt 0:04:50]} 15. Qe2 {[%emt 0:10:46]} Bb4 {[%emt 0:06:32]} 16. Red1 {[%emt 0:07:47]} Qg4 {[%emt 0:11:36]} 17. h3 {[%emt 0:09:04]} Qh5 {[%emt 0:01:25]} 18. Nf1 {[%emt 0:01:34]} Ne7 {[%emt 0:07:57]} 19. d5 {[%emt 0:06:48]} exd5 {[%emt 0:02:12]} 20. Bxf6 {[%emt 0:03:05]} gxf6 {[%emt 0:00:29]} 21. Qb2 {[%emt 0:01:31]} Bd6 {[%emt 0:08:56]} 22. Qxf6 {[%emt 0:00:39]} Ng6 {[%emt 0:01:55]} 23. Ng5 {[%emt 0:04:33]} Rd7 {[%emt 0:05:30]} 24. cxd5 {[%emt 0:04:26]} Bf4 {[%emt 0:02:02]} 25. Ne4 {[%emt 0:11:13]} Bxc1 {[%emt 0:03:50]} 26. Rxc1 {[%emt 0:00:22]} Qh6 {[%emt 0:04:17]} 27. Ne3 {[%emt 0:04:16]} Qf4 {[%emt 0:06:04]} 28. g3 {[%emt 0:02:06]} Qh6 {[%emt 0:06:15]} 29. Rd1 {[%emt 0:00:19]} Qg7 {[%emt 0:01:12]} 30. Nf5 {[%emt 0:00:33]} Qh8 {[%emt 0:00:18]} 31. Qg5 {[%emt 0:02:33]} Kf8 {[%emt 0:03:15]} 32. Nf6 {[%emt 0:00:43]} 1-0

[Event "Estonian-ch Open 2020"]
[Site "Paul Kerese Malemaja"]
[Date "2020.08.12"]
[Round "5.5"]
[White "Kulaots, Kaido"]
[Black "Kanep, Meelis"]
[Result "1/2-1/2"]
[ECO "B76"]
[WhiteElo "2524"]
[BlackElo "2465"]
[Annotator "ChessBase"]
[PlyCount "28"]
[EventDate "2020.08.09"]
[EventCountry "EST"]
[SourceTitle "playchess.com"]
[Source "ChessBase"]
[SourceQuality "1"]
[TimeControl "40/5400+30:900+30"]

1. e4 {[%emt 0:00:00]} c5 {[%emt 0:01:09]} 2. Nf3 {[%emt 0:00:00]} d6 {[%emt 0:00:16]} 3. d4 {[%emt 0:00:09]} cxd4 {[%emt 0:00:06]} 4. Nxd4 {[%emt 0:00:05]} Nf6 {[%emt 0:00:04]} 5. Nc3 {[%emt 0:00:07]} g6 {[%emt 0:00:20]} 6. Be3 {[%emt 0:01:17]} Bg7 {[%emt 0:00:56]} 7. f3 {[%emt 0:00:23]} O-O {[%emt 0:00:23]} 8. Qd2 {[%emt 0:00:28]} Nc6 {[%emt 0:00:11]} 9. O-O-O {[%emt 0:04:20]} d5 {[%emt 0:03:35]} 10. exd5 {[%emt 0:04:48]} Nxd5 {[%emt 0:00:25]} 11. Nxc6 {[%emt 0:00:12]} bxc6 {[%emt 0:00:13]} 12. Bd4 {[%emt 0:00:10]} e5 {[%emt 0:01:14]} 13. Bc5 {[%emt 0:00:29]} Be6 {[%emt 0:00:24]} 14. Ne4 {[%emt 0:03:16]} Re8 {[%emt 0:00:20]} 1/2-1/2

[Event "Estonian-ch Open 2020"]
[Site "Paul Kerese Malemaja"]
[Date "2020.08.13"]
[Round "6.2"]
[White "Vorobjov, Pavel"]
[Black "Kulaots, Kaido"]
[Result "0-1"]
[ECO "A21"]
[WhiteElo "2269"]
[BlackElo "2524"]
[Annotator "ChessBase"]
[PlyCount "78"]
[EventDate "2020.08.09"]
[EventCountry "EST"]
[SourceTitle "playchess.com"]
[Source "ChessBase"]
[SourceQuality "1"]
[TimeControl "40/5400+30:900+30"]

1. c4 {[%emt 0:00:00]} e5 {[%emt 0:00:51]} 2. Nc3 {[%emt 0:00:00]} Bb4 {[%emt 0:00:57]} 3. Nd5 {[%emt 0:00:08]} a5 {[%emt 0:01:12]} 4. a3 {[%emt 0:00:27]} Be7 {[%emt 0:00:45]} 5. d3 {[%emt 0:01:50]} Nf6 {[%emt 0:03:41]} 6. Nf3 {[%emt 0:06:25]} Nxd5 {[%emt 0:00:41]} 7. cxd5 {[%emt 0:00:02]} d6 {[%emt 0:00:14]} 8. e4 {[%emt 0:00:30]} O-O {[%emt 0:01:05]} 9. Be2 {[%emt 0:02:12]} f5 {[%emt 0:10:24]} 10. O-O {[%emt 0:02:16]} Kh8 {[%emt 0:02:46]} 11. exf5 {[%emt 0:01:22]} Bxf5 {[%emt 0:01:59]} 12. Be3 {[%emt 0:01:47]} a4 {[%emt 0:07:55]} 13. b4 {[%emt 0:05:42]} axb3 {[%emt 0:02:29]} 14. Qxb3 {[%emt 0:00:10]} b6 {[%emt 0:00:32]} 15. a4 {[%emt 0:03:06]} Nd7 {[%emt 0:01:16]} 16. a5 {[%emt 0:03:06]} bxa5 {[%emt 0:02:52]} 17. Rfc1 {[%emt 0:12:56]} Nb6 {[%emt 0:02:05]} 18. Ra3 {[%emt 0:06:46]} a4 {[%emt 0:04:20]} 19. Qa2 {[%emt 0:00:44]} Ra5 {[%emt 0:12:10]} 20. Bxb6 {[%emt 0:11:46]} cxb6 {[%emt 0:00:06]} 21. Rxa4 {[%emt 0:00:12]} Bd7 {[%emt 0:01:03]} 22. Ra3 {[%emt 0:03:40]} Bf6 {[%emt 0:13:22]} 23. Rb1 {[%emt 0:11:28]} Qc7 {[%emt 0:00:38]} 24. Rxa5 {[%emt 0:02:37]} bxa5 {[%emt 0:00:08]} 25. Nd2 {[%emt 0:00:16]} a4 {[%emt 0:03:07]} 26. Ne4 {[%emt 0:01:29]} Rb8 {[%emt 0:01:30]} 27. g4 {[%emt 0:04:38]} Bd8 {[%emt 0:03:13]} 28. Ra1 {[%emt 0:03:52]} Rb4 {[%emt 0:05:55]} 29. Qa3 {[%emt 0:02:45]} Qb6 {[%emt 0:01:07]} 30. Kg2 {[%emt 0:00:18]} Bh4 {[%emt 0:05:15]} 31. Bd1 {[%emt 0:06:03]} h5 {[%emt 0:03:31]} 32. Ra2 {[%emt 0:04:46]} hxg4 {[%emt 0:00:25]} 33. Rc2 {[%emt 0:00:22]} Bf5 {[%emt 0:04:38]} 34. Qc1 {[%emt 0:01:34]} Rb1 {[%emt 0:01:45]} 35. Qd2 {[%emt 0:00:57]} a3 {[%emt 0:00:15]} 36. Rc6 {[%emt 0:00:35]} Qb2 {[%emt 0:01:17]} 37. Rc2 {[%emt 0:00:43]} Qd4 {[%emt 0:00:20]} 38. f3 {[%emt 0:00:51]} gxf3+ {[%emt 0:00:30]} 39. Kxf3 {[%emt 0:00:10]} Rxd1 {[%emt 0:00:13]} 0-1

[Event "Estonian-ch Open 2020"]
[Site "Paul Kerese Malemaja"]
[Date "2020.08.13"]
[Round "6.4"]
[White "Shishkov, Andrei"]
[Black "Sepp, Olav"]
[Result "1-0"]
[ECO "E81"]
[WhiteElo "2390"]
[BlackElo "2410"]
[Annotator "ChessBase"]
[PlyCount "47"]
[EventDate "2020.08.09"]
[EventCountry "EST"]
[SourceTitle "playchess.com"]
[Source "ChessBase"]
[SourceQuality "1"]
[TimeControl "40/5400+30:900+30"]

1. d4 {[%emt 0:00:00]} Nf6 {[%emt 0:00:00]} 2. c4 {[%emt 0:00:00]} g6 {[%emt 0:00:00]} 3. Nc3 {[%emt 0:00:00]} Bg7 {[%emt 0:00:00]} 4. e4 {[%emt 0:00:00]} d6 {[%emt 0:00:00]} 5. f3 {[%emt 0:00:00]} O-O {[%emt 0:00:12]} 6. Be3 {[%emt 0:00:00]} a6 {[%emt 0:00:27]} 7. Qd2 {[%emt 0:00:22]} Nbd7 {[%emt 0:00:26]} 8. Nh3 {[%emt 0:00:57]} c5 {[%emt 0:00:15]} 9. d5 {[%emt 0:00:54]} b5 {[%emt 0:00:47]} 10. cxb5 {[%emt 0:08:47]} Qa5 {[%emt 0:00:10]} 11. a4 {[%emt 0:15:09]} Nb6 {[%emt 0:04:47]} 12. Nf2 {[%emt 0:23:19]} Nfd7 {[%emt 0:09:46]} 13. Bh6 {[%emt 0:05:05]} Bxh6 {[%emt 0:21:31]} 14. Qxh6 {[%emt 0:00:02]} Ne5 {[%emt 0:06:46]} 15. h4 {[%emt 0:04:22]} f6 {[%emt 0:06:14]} 16. Qc1 {[%emt 0:02:10]} c4 {[%emt 0:12:33]} 17. f4 {[%emt 0:05:58]} Ned7 {[%emt 0:04:01]} 18. h5 {[%emt 0:04:18]} axb5 {[%emt 0:03:26]} 19. hxg6 {[%emt 0:02:55]} hxg6 {[%emt 0:00:05]} 20. f5 {[%emt 0:01:57]} g5 {[%emt 0:07:02]} 21. Qd1 {[%emt 0:00:45]} Rf7 {[%emt 0:01:08]} 22. Qh5 {[%emt 0:00:18]} Rg7 {[%emt 0:00:07]} 23. Qh8+ {[%emt 0:03:44]} Kf7 {[%emt 0:00:06]} 24. Ng4 {[%emt 0:00:13]} 1-0

[Event "Estonian-ch Open 2020"]
[Site "Paul Kerese Malemaja"]
[Date "2020.08.13"]
[Round "6.5"]
[White "Seeman, Tarvo"]
[Black "Chukavin, Kirill"]
[Result "0-1"]
[ECO "A05"]
[WhiteElo "2415"]
[BlackElo "2348"]
[Annotator "ChessBase"]
[PlyCount "88"]
[EventDate "2020.08.09"]
[EventCountry "EST"]
[SourceTitle "playchess.com"]
[Source "ChessBase"]
[SourceQuality "1"]
[TimeControl "40/5400+30:900+30"]

1. Nf3 {[%emt 0:00:00]} Nf6 {[%emt 0:00:00]} 2. g3 {[%emt 0:00:00]} d5 {[%emt 0:00:00]} 3. Bg2 {[%emt 0:00:04]} e6 {[%emt 0:00:01]} 4. c4 {[%emt 0:00:39]} Be7 {[%emt 0:00:14]} 5. d4 {[%emt 0:00:30]} O-O {[%emt 0:00:13]} 6. Nc3 {[%emt 0:00:06]} dxc4 {[%emt 0:00:11]} 7. Ne5 {[%emt 0:00:12]} c5 {[%emt 0:00:12]} 8. dxc5 {[%emt 0:00:14]} Qxd1+ {[%emt 0:00:09]} 9. Nxd1 {[%emt 0:00:08]} Bxc5 {[%emt 0:00:08]} 10. Bd2 {[%emt 0:00:30]} Nc6 {[%emt 0:11:03]} 11. Bxc6 {[%emt 0:00:29]} bxc6 {[%emt 0:00:07]} 12. Rc1 {[%emt 0:00:20]} Ba6 {[%emt 0:04:37]} 13. Nxc4 {[%emt 0:03:01]} Rac8 {[%emt 0:06:56]} 14. O-O {[%emt 0:17:45]} Rfd8 {[%emt 0:02:35]} 15. Be3 {[%emt 0:00:48]} Bxe3 {[%emt 0:02:18]} 16. Ndxe3 {[%emt 0:01:18]} Nd5 {[%emt 0:00:41]} 17. Rfd1 {[%emt 0:14:13]} Nxe3 {[%emt 0:05:53]} 18. Rxd8+ {[%emt 0:00:37]} Rxd8 {[%emt 0:00:05]} 19. fxe3 {[%emt 0:00:34]} g6 {[%emt 0:21:30]} 20. Kf2 {[%emt 0:00:54]} Rd5 {[%emt 0:01:25]} 21. b3 {[%emt 0:02:16]} Rf5+ {[%emt 0:06:24]} 22. Kg2 {[%emt 0:01:20]} Rc5 {[%emt 0:02:43]} 23. Kf3 {[%emt 0:02:08]} Kg7 {[%emt 0:09:55]} 24. Rc2 {[%emt 0:04:20]} Kf6 {[%emt 0:10:08]} 25. Na3 {[%emt 0:00:45]} Rxc2 {[%emt 0:00:58]} 26. Nxc2 {[%emt 0:00:07]} c5 {[%emt 0:00:55]} 27. Kf2 {[%emt 0:08:15]} Kf5 {[%emt 0:01:21]} 28. b4 {[%emt 0:07:02]} c4 {[%emt 0:04:09]} 29. a4 {[%emt 0:06:01]} c3 {[%emt 0:04:10]} 30. b5 {[%emt 0:06:38]} Bb7 {[%emt 0:00:05]} 31. a5 {[%emt 0:00:22]} Ke5 {[%emt 0:01:38]} 32. b6 {[%emt 0:11:07]} a6 {[%emt 0:00:22]} 33. e4 {[%emt 0:00:40]} Kxe4 {[%emt 0:00:58]} 34. g4 {[%emt 0:00:59]} g5 {[%emt 0:01:09]} 35. Ne1 {[%emt 0:00:38]} Kd4 {[%emt 0:01:49]} 36. Nf3+ {[%emt 0:00:17]} Kc4 {[%emt 0:00:14]} 37. Ke3 {[%emt 0:00:50]} Kb3 {[%emt 0:01:20]} 38. Kd3 {[%emt 0:01:16]} Kb2 {[%emt 0:00:41]} 39. Ne1 {[%emt 0:00:44]} f5 {[%emt 0:00:34]} 40. h3 {[%emt 0:00:00]} Be4+ {[%emt 0:00:00]} 41. Kd4 {[%emt 0:02:00]} c2 {[%emt 0:04:03]} 42. Nxc2 {[%emt 0:04:08]} Kxc2 {[%emt 0:00:11]} 43. Ke5 {[%emt 0:00:19]} Kd2 {[%emt 0:00:35]} 44. Kxe6 {[%emt 0:00:04]} f4 {[%emt 0:00:30]} 0-1

[Event "Estonian-ch Open 2020"]
[Site "Paul Kerese Malemaja"]
[Date "2020.08.14"]
[Round "7.2"]
[White "Sepp, Olav"]
[Black "Seeman, Tarvo"]
[Result "1-0"]
[ECO "A25"]
[WhiteElo "2410"]
[BlackElo "2415"]
[Annotator "ChessBase"]
[PlyCount "73"]
[EventDate "2020.08.09"]
[EventCountry "EST"]
[SourceTitle "playchess.com"]
[Source "ChessBase"]
[SourceQuality "1"]
[TimeControl "40/5400+30:900+30"]

1. c4 {[%emt 0:00:00]} e5 {[%emt 0:05:08]} 2. Nc3 {[%emt 0:00:00]} Nc6 {[%emt 0:02:39]} 3. g3 {[%emt 0:06:37]} g6 {[%emt 0:12:33]} 4. Bg2 {[%emt 0:00:19]} Bg7 {[%emt 0:00:04]} 5. Rb1 {[%emt 0:08:49]} a5 {[%emt 0:05:09]} 6. a3 {[%emt 0:01:00]} f5 {[%emt 0:01:26]} 7. d3 {[%emt 0:04:13]} Nf6 {[%emt 0:00:25]} 8. e3 {[%emt 0:00:48]} O-O {[%emt 0:03:13]} 9. Nge2 {[%emt 0:00:12]} d6 {[%emt 0:00:43]} 10. O-O {[%emt 0:00:26]} g5 {[%emt 0:03:42]} 11. f4 {[%emt 0:03:00]} exf4 {[%emt 0:04:18]} 12. exf4 {[%emt 0:01:41]} g4 {[%emt 0:01:04]} 13. d4 {[%emt 0:00:18]} Ne7 {[%emt 0:00:50]} 14. d5 {[%emt 0:00:25]} c5 {[%emt 0:07:29]} 15. dxc6 {[%emt 0:02:12]} bxc6 {[%emt 0:00:35]} 16. Be3 {[%emt 0:07:39]} Be6 {[%emt 0:01:57]} 17. b3 {[%emt 0:08:33]} Re8 {[%emt 0:07:07]} 18. Qc2 {[%emt 0:03:03]} Qc7 {[%emt 0:09:12]} 19. Nd4 {[%emt 0:03:12]} Bd7 {[%emt 0:00:56]} 20. Qd3 {[%emt 0:10:53]} h5 {[%emt 0:02:40]} 21. Rfd1 {[%emt 0:02:58]} h4 {[%emt 0:02:07]} 22. Bf2 {[%emt 0:02:16]} h3 {[%emt 0:03:54]} 23. Bh1 {[%emt 0:00:04]} d5 {[%emt 0:03:06]} 24. cxd5 {[%emt 0:11:47]} cxd5 {[%emt 0:02:49]} 25. Ndb5 {[%emt 0:00:17]} Bxb5 {[%emt 0:01:55]} 26. Nxb5 {[%emt 0:00:09]} Qd7 {[%emt 0:01:01]} 27. Nc3 {[%emt 0:07:46]} Rad8 {[%emt 0:04:05]} 28. Bd4 {[%emt 0:01:42]} Kh8 {[%emt 0:04:30]} 29. b4 {[%emt 0:03:20]} axb4 {[%emt 0:00:16]} 30. axb4 {[%emt 0:00:01]} Qe6 {[%emt 0:02:41]} 31. b5 {[%emt 0:01:49]} Ne4 {[%emt 0:00:06]} 32. Bxg7+ {[%emt 0:00:39]} Kxg7 {[%emt 0:00:05]} 33. Qd4+ {[%emt 0:00:16]} Kg6 {[%emt 0:01:16]} 34. Ra1 {[%emt 0:03:46]} Kh5 {[%emt 0:04:09]} 35. Ra6 {[%emt 0:02:05]} Qc8 {[%emt 0:00:14]} 36. Bxe4 {[%emt 0:03:11]} dxe4 {[%emt 0:00:23]} 37. Qg7 {[%emt 0:00:14]} 1-0

[Event "Estonian-ch Open 2020"]
[Site "Paul Kerese Malemaja"]
[Date "2020.08.14"]
[Round "7.4"]
[White "Kulaots, Kaido"]
[Black "Haitin, Ilja"]
[Result "1-0"]
[ECO "C41"]
[WhiteElo "2524"]
[BlackElo "2357"]
[Annotator "ChessBase"]
[PlyCount "81"]
[EventDate "2020.08.09"]
[EventCountry "EST"]
[SourceTitle "playchess.com"]
[Source "ChessBase"]
[SourceQuality "1"]
[TimeControl "40/5400+30:900+30"]

1. e4 {[%emt 0:00:00]} d6 {[%emt 0:00:00]} 2. d4 {[%emt 0:00:00]} Nf6 {[%emt 0:00:00]} 3. Nc3 {[%emt 0:00:31]} e5 {[%emt 0:00:00]} 4. Nf3 {[%emt 0:00:21]} Nbd7 {[%emt 0:00:00]} 5. Bc4 {[%emt 0:00:29]} Be7 {[%emt 0:00:00]} 6. O-O {[%emt 0:00:09]} O-O {[%emt 0:00:02]} 7. a4 {[%emt 0:00:30]} c6 {[%emt 0:00:08]} 8. h3 {[%emt 0:01:23]} h6 {[%emt 0:00:11]} 9. Re1 {[%emt 0:01:01]} Re8 {[%emt 0:00:07]} 10. Be3 {[%emt 0:00:41]} Qc7 {[%emt 0:00:08]} 11. d5 {[%emt 0:00:56]} Nb6 {[%emt 0:12:43]} 12. Bb3 {[%emt 0:04:27]} cxd5 {[%emt 0:01:33]} 13. exd5 {[%emt 0:05:43]} a6 {[%emt 0:06:10]} 14. Qd3 {[%emt 0:09:52]} Nbd7 {[%emt 0:02:23]} 15. a5 {[%emt 0:00:42]} Bd8 {[%emt 0:07:21]} 16. Nd2 {[%emt 0:08:23]} Nc5 {[%emt 0:01:24]} 17. Qc4 {[%emt 0:07:57]} Nxb3 {[%emt 0:00:49]} 18. Qxb3 {[%emt 0:07:14]} Bf5 {[%emt 0:12:41]} 19. Bb6 {[%emt 0:04:19]} Qd7 {[%emt 0:00:49]} 20. Nc4 {[%emt 0:01:46]} Rb8 {[%emt 0:06:36]} 21. Rac1 {[%emt 0:11:10]} Bxb6 {[%emt 0:03:39]} 22. Nxb6 {[%emt 0:03:21]} Qc7 {[%emt 0:01:23]} 23. Qb4 {[%emt 0:00:18]} Bg6 {[%emt 0:12:04]} 24. Re3 {[%emt 0:08:52]} Nh5 {[%emt 0:02:42]} 25. Ne2 {[%emt 0:01:19]} f5 {[%emt 0:02:01]} 26. c4 {[%emt 0:04:10]} f4 {[%emt 0:06:39]} 27. Rec3 {[%emt 0:00:03]} Qe7 {[%emt 0:07:23]} 28. c5 {[%emt 0:00:47]} dxc5 {[%emt 0:00:23]} 29. Qxc5 {[%emt 0:00:25]} Qg5 {[%emt 0:00:40]} 30. d6 {[%emt 0:01:12]} Rbd8 {[%emt 0:02:52]} 31. d7 {[%emt 0:07:36]} Rf8 {[%emt 0:00:02]} 32. f3 {[%emt 0:03:49]} Nf6 {[%emt 0:08:05]} 33. Rd1 {[%emt 0:02:32]} Ne4 {[%emt 0:04:41]} 34. Qd5+ {[%emt 0:03:13]} Kh7 {[%emt 0:00:01]} 35. Rc8 {[%emt 0:00:25]} Rxd7 {[%emt 0:01:17]} 36. Qxd7 {[%emt 0:00:49]} Bf5 {[%emt 0:00:22]} 37. Rxf8 {[%emt 0:01:11]} Bxd7 {[%emt 0:00:32]} 38. Nxd7 {[%emt 0:00:02]} Ng3 {[%emt 0:00:37]} 39. Nc3 {[%emt 0:00:33]} Nf5 {[%emt 0:00:29]} 40. Ne4 {[%emt 0:00:00]} Qg6 {[%emt 0:00:00]} 41. Ndf6+ {[%emt 0:02:31]} 1-0

[Event "Estonian-ch Open 2020"]
[Site "Paul Kerese Malemaja"]
[Date "2020.08.14"]
[Round "7.5"]
[White "Kanep, Meelis"]
[Black "Vorobjov, Pavel"]
[Result "1/2-1/2"]
[ECO "E63"]
[WhiteElo "2465"]
[BlackElo "2269"]
[Annotator "ChessBase"]
[PlyCount "67"]
[EventDate "2020.08.09"]
[EventCountry "EST"]
[SourceTitle "playchess.com"]
[Source "ChessBase"]
[SourceQuality "1"]
[TimeControl "40/5400+30:900+30"]

1. d4 {[%emt 0:00:00]} Nf6 {[%emt 0:00:00]} 2. c4 {[%emt 0:00:00]} g6 {[%emt 0:00:06]} 3. Nc3 {[%emt 0:00:02]} Bg7 {[%emt 0:00:07]} 4. Nf3 {[%emt 0:00:10]} O-O {[%emt 0:00:25]} 5. g3 {[%emt 0:00:05]} d6 {[%emt 0:00:17]} 6. Bg2 {[%emt 0:00:07]} Nc6 {[%emt 0:00:59]} 7. O-O {[%emt 0:01:40]} a6 {[%emt 0:00:38]} 8. Bf4 {[%emt 0:00:15]} Nh5 {[%emt 0:04:55]} 9. Be3 {[%emt 0:01:46]} e5 {[%emt 0:02:40]} 10. dxe5 {[%emt 0:02:15]} Nxe5 {[%emt 0:00:45]} 11. Nxe5 {[%emt 0:00:31]} Bxe5 {[%emt 0:00:23]} 12. c5 {[%emt 0:02:10]} c6 {[%emt 0:07:28]} 13. cxd6 {[%emt 0:04:45]} Qxd6 {[%emt 0:00:57]} 14. Qc1 {[%emt 0:03:51]} Qb4 {[%emt 0:03:21]} 15. a3 {[%emt 0:20:37]} Qc4 {[%emt 0:03:13]} 16. Bh6 {[%emt 0:09:26]} Re8 {[%emt 0:02:11]} 17. e4 {[%emt 0:02:39]} Nf6 {[%emt 0:01:52]} 18. h3 {[%emt 0:01:08]} a5 {[%emt 0:06:30]} 19. Rd1 {[%emt 0:04:57]} b5 {[%emt 0:05:57]} 20. Qe3 {[%emt 0:14:58]} Be6 {[%emt 0:08:08]} 21. Bf4 {[%emt 0:10:29]} Bxf4 {[%emt 0:12:15]} 22. Qxf4 {[%emt 0:00:02]} Nh5 {[%emt 0:00:25]} 23. Qe3 {[%emt 0:04:55]} b4 {[%emt 0:01:01]} 24. Ne2 {[%emt 0:02:39]} Qb3 {[%emt 0:02:07]} 25. Qc1 {[%emt 0:01:17]} c5 {[%emt 0:01:18]} 26. Qxc5 {[%emt 0:07:34]} Qxb2 {[%emt 0:00:15]} 27. Nd4 {[%emt 0:00:28]} bxa3 {[%emt 0:02:48]} 28. Nxe6 {[%emt 0:03:06]} Rxe6 {[%emt 0:01:05]} 29. Rxa3 {[%emt 0:00:18]} Nf6 {[%emt 0:07:48]} 30. Rxa5 {[%emt 0:00:32]} Rae8 {[%emt 0:00:06]} 31. Ra4 {[%emt 0:02:13]} Qe2 {[%emt 0:01:30]} 32. Rf1 {[%emt 0:00:32]} Nxe4 {[%emt 0:00:28]} 33. Bxe4 {[%emt 0:00:03]} Rxe4 {[%emt 0:00:11]} 34. Rxe4 {[%emt 0:00:13]} 1/2-1/2

[Event "Estonian-ch Open 2020"]
[Site "Paul Kerese Malemaja"]
[Date "2020.08.15"]
[Round "8.3"]
[White "Shishkov, Andrei"]
[Black "Kulaots, Kaido"]
[Result "0-1"]
[ECO "E35"]
[WhiteElo "2390"]
[BlackElo "2524"]
[Annotator "ChessBase"]
[PlyCount "56"]
[EventDate "2020.08.09"]
[EventCountry "EST"]
[SourceTitle "playchess.com"]
[Source "ChessBase"]
[SourceQuality "1"]
[TimeControl "40/5400+30:900+30"]

1. d4 {[%emt 0:00:00]} Nf6 {[%emt 0:00:00]} 2. c4 {[%emt 0:00:00]} e6 {[%emt 0:00:00]} 3. Nc3 {[%emt 0:00:00]} Bb4 {[%emt 0:00:00]} 4. Qc2 {[%emt 0:00:00]} d5 {[%emt 0:00:33]} 5. cxd5 {[%emt 0:00:00]} exd5 {[%emt 0:00:13]} 6. Bg5 {[%emt 0:00:00]} c5 {[%emt 0:00:20]} 7. dxc5 {[%emt 0:00:12]} h6 {[%emt 0:00:44]} 8. Bh4 {[%emt 0:00:10]} g5 {[%emt 0:00:45]} 9. Bg3 {[%emt 0:00:07]} Ne4 {[%emt 0:00:12]} 10. e3 {[%emt 0:00:11]} Qa5 {[%emt 0:00:55]} 11. Rc1 {[%emt 0:01:08]} Nc6 {[%emt 0:02:25]} 12. Bd3 {[%emt 0:04:28]} Nxg3 {[%emt 0:01:44]} 13. hxg3 {[%emt 0:00:10]} d4 {[%emt 0:00:43]} 14. exd4 {[%emt 0:25:08]} Nxd4 {[%emt 0:00:10]} 15. Qd1 {[%emt 0:00:42]} Bxc5 {[%emt 0:00:59]} 16. a3 {[%emt 0:14:00]} Be7 {[%emt 0:12:46]} 17. Nge2 {[%emt 0:04:49]} Bg4 {[%emt 0:06:19]} 18. f3 {[%emt 0:03:36]} Nxe2 {[%emt 0:01:20]} 19. Qxe2 {[%emt 0:00:36]} Be6 {[%emt 0:00:13]} 20. Bb5+ {[%emt 0:04:08]} Kf8 {[%emt 0:03:09]} 21. Qe5 {[%emt 0:12:49]} Kg8 {[%emt 0:02:53]} 22. Qe4 {[%emt 0:06:45]} Qb6 {[%emt 0:08:15]} 23. Rc2 {[%emt 0:08:04]} Bf6 {[%emt 0:03:04]} 24. Bc4 {[%emt 0:02:48]} Bxc3+ {[%emt 0:14:47]} 25. Rxc3 {[%emt 0:00:51]} Re8 {[%emt 0:03:34]} 26. Re3 {[%emt 0:03:07]} Kg7 {[%emt 0:05:09]} 27. Re2 {[%emt 0:02:51]} Bxc4 {[%emt 0:00:23]} 28. Qxc4 {[%emt 0:00:06]} Rc8 {[%emt 0:00:05]} 0-1